bitfinex-derivatives/quotes_BTCF0:USTF0_20250812
["timestamp","ask_amount","ask_price","bid_price","bid_amount"]
[1755013383010,0.18131,119740.0,119730.0,1.45680635]
[1755013385199,0.18131,119740.0,119730.0,0.61612635]
[1755013385404,0.18131,119740.0,119730.0,0.64557635]
[1755013385709,0.18131,119740.0,119730.0,1.48537635]
[1755013387911,0.5418608,119740.0,119730.0,0.9230396]
[1755013388308,0.4583412,119740.0,119730.0,1.42965635]
[1755013388610,0.18131,119740.0,119730.0,1.42965635]
[1755013388905,0.18131,119740.0,119730.0,1.45404635]
[1755013389111,0.18084,119740.0,119730.0,1.45404635]
[1755013390006,0.18084,119740.0,119730.0,0.9474296]
[1755013390207,0.18084,119740.0,119730.0,1.48344635]
[1755013394212,0.18084,119740.0,119730.0,0.64392635]
[1755013394413,0.18084,119740.0,119730.0,1.48248635]
[1755013400223,0.08745,119740.0,119730.0,1.48248635]
[1755013400527,0.003,119740.0,119730.0,1.48248635]
[1755013402128,0.04674,119740.0,119730.0,1.48248635]
[1755013402827,0.18402,119740.0,119730.0,1.48124635]
[1755013406430,0.09069,119740.0,119730.0,1.48124635]
[1755013408735,0.18402,119740.0,119730.0,1.48048635]
[1755013409237,0.18402,119740.0,119730.0,0.61953635]
[1755013409436,0.18402,119740.0,119730.0,1.48040635]
[1755013410536,0.18402,119740.0,119730.0,1.45573635]
[1755013411041,0.18402,119740.0,119730.0,1.48012635]
[1755013413542,0.18402,119740.0,119730.0,0.64392635]
[1755013413732,0.18402,119740.0,119730.0,1.47984635]
[1755013414130,0.81063675,119740.0,119730.0,0.0835196]
[1755013414337,0.0835193,119730.0,119720.0,0.2505751]
[1755013414637,0.3869493,119730.0,119720.0,1.0861751]
[1755013414837,0.3869493,119730.0,119720.0,1.62155185]
[1755013415240,0.2669493,119730.0,119720.0,1.62155185]
[1755013415741,0.2669493,119730.0,119720.0,1.64437185]
[1755013415931,0.0835193,119730.0,119720.0,2.2345152]
[1755013416740,0.1276693,119730.0,119720.0,2.2345152]
[1755013417042,0.1276693,119730.0,119720.0,1.72789845]
[1755013417440,0.1276693,119730.0,119720.0,2.2345152]
[1755013418643,0.1276693,119730.0,119720.0,1.72789845]
[1755013418940,0.1276693,119730.0,119720.0,2.2345152]
[1755013419437,0.3989372,119740.0,119730.0,0.0835193]
[1755013419633,0.08345594,119750.0,119730.0,0.0835193]
[1755013419634,0.33398324,119750.0,119740.0,0.0835123]
[1755013419838,0.71092544,119750.0,119740.0,1.47662905]
[1755013420243,0.60092544,119750.0,119740.0,1.47662905]
[1755013420444,0.31490174,119750.0,119740.0,1.47662905]
[1755013420739,0.33922174,119750.0,119740.0,0.9700123]
[1755013420946,0.43390174,119750.0,119740.0,1.47662905]
[1755013422542,0.43590174,119750.0,119740.0,1.47662905]
[1755013422841,0.43890174,119750.0,119740.0,1.48545212]
[1755013423349,0.35539224,119750.0,119740.0,1.48545212]
[1755013424948,0.35539224,119750.0,119740.0,1.46263212]
[1755013425650,0.35539224,119750.0,119740.0,1.48545212]
[1755013426453,0.35539224,119750.0,119740.0,0.97883537]
[1755013426648,0.35539224,119750.0,119740.0,0.62771212]
[1755013426951,0.48539224,119750.0,119740.0,1.46159212]
[1755013427351,0.35539224,119750.0,119740.0,1.46159212]
[1755013429254,0.35539224,119750.0,119740.0,0.95497537]
[1755013429452,0.32533224,119750.0,119740.0,1.48364212]
[1755013429650,0.35539224,119750.0,119740.0,1.48364212]
[1755013431151,0.35539224,119750.0,119740.0,0.97702537]
[1755013431557,0.35539224,119750.0,119740.0,1.48364212]
[1755013431962,0.35539224,119750.0,119740.0,0.97702537]
[1755013432258,0.35539224,119750.0,119740.0,1.48364212]
[1755013432556,0.35539224,119750.0,119740.0,1.47481905]
[1755013433457,0.35539224,119750.0,119740.0,1.45276905]
[1755013433852,0.46539224,119750.0,119740.0,0.0835123]
[1755013434046,0.46539224,119750.0,119740.0,0.59012905]
[1755013434551,0.46539224,119750.0,119740.0,0.61888905]
[1755013436057,0.35539224,119750.0,119740.0,0.64093905]
[1755013436260,0.21611224,119750.0,119740.0,0.64093905]
[1755013436452,0.21611224,119750.0,119740.0,0.64967632]
[1755013436653,0.08845594,119750.0,119740.0,1.48211632]
[1755013436856,0.17196124,119750.0,119740.0,1.48211632]
[1755013437048,0.08845594,119750.0,119740.0,1.48211632]
[1755013437454,0.13260594,119750.0,119740.0,1.48211632]
[1755013437858,0.21611154,119750.0,119740.0,1.48211632]
[1755013438262,0.11544148,119750.0,119740.0,1.50073337]
[1755013438759,0.19894718,119750.0,119740.0,1.50073337]
[1755013439058,0.07129148,119750.0,119740.0,1.50073337]
[1755013439254,0.11544148,119750.0,119740.0,1.50073337]
[1755013440959,0.24329648,119750.0,119740.0,1.50073337]
[1755013441159,0.24329648,119750.0,119740.0,0.99411662]
[1755013441354,0.24329648,119750.0,119740.0,1.50073337]
[1755013441555,0.41195218,119750.0,119740.0,1.50073337]
[1755013442260,0.46608218,119750.0,119740.0,1.50073337]
[1755013442456,0.57608218,119750.0,119740.0,0.13962662]
[1755013442655,0.59608218,119750.0,119740.0,0.6375061]
[1755013443060,0.48273443,119750.0,119740.0,0.6375061]
[1755013444760,0.59273443,119750.0,119740.0,0.13088935]
[1755013444962,0.59273443,119750.0,119740.0,0.6375061]
[1755013445162,0.48273443,119750.0,119740.0,0.6375061]
[1755013445767,0.59273443,119750.0,119740.0,0.6375061]
[1755013446562,0.48273443,119750.0,119740.0,0.6375061]
[1755013446763,0.59273443,119750.0,119740.0,0.6375061]
[1755013447469,0.59273443,119750.0,119740.0,0.6587861]
[1755013447661,0.48273443,119750.0,119740.0,1.4895861]
[1755013447964,0.48273443,119750.0,119740.0,0.98296935]
[1755013448168,0.48273443,119750.0,119740.0,0.6587861]
[1755013448360,0.48273443,119750.0,119740.0,0.98296935]
[1755013448560,0.48273443,119750.0,119740.0,1.4895861]
[1755013449767,0.46608218,119750.0,119740.0,1.4895861]
[1755013450868,0.46608218,119750.0,119740.0,0.98296935]
[1755013451067,0.46608218,119750.0,119740.0,1.4895861]
[1755013453576,0.46608218,119750.0,119740.0,1.4889061]
[1755013456577,0.46608218,119750.0,119740.0,1.4884261]
[1755013456876,0.46608218,119750.0,119740.0,0.98180935]
[1755013457077,0.57608218,119750.0,119740.0,0.6375061]
[1755013457377,0.57608218,119750.0,119740.0,0.13088935]
[1755013457977,0.57608218,119750.0,119740.0,0.6375061]
[1755013458679,0.57608218,119750.0,119740.0,0.13088935]
[1755013458978,0.57608218,119750.0,119740.0,0.6375061]
[1755013460572,0.0835126,119740.0,119730.0,0.39914129]
[1755013460774,0.0835126,119740.0,119730.0,0.2505473]
[1755013460775,0.77106935,119740.0,119730.0,0.2505473]
[1755013460979,0.87495935,119740.0,119730.0,0.2505473]
[1755013461284,0.3683426,119740.0,119730.0,0.167028]
[1755013461677,0.3693426,119740.0,119730.0,0.167028]
[1755013462082,0.3713426,119740.0,119730.0,0.167028]
[1755013462277,0.87795935,119740.0,119730.0,0.167028]
[1755013462479,0.3713426,119740.0,119730.0,0.167028]
[1755013464385,0.3713426,119740.0,119730.0,0.194278]
[1755013464974,0.3713426,119740.0,119730.0,0.70089475]
[1755013465385,0.4991976,119740.0,119730.0,0.70089475]
[1755013466285,0.4991976,119740.0,119730.0,0.194278]
[1755013466687,0.4991976,119740.0,119730.0,0.70089475]
[1755013468086,0.4991976,119740.0,119730.0,0.194278]
[1755013468287,0.4991976,119740.0,119730.0,0.70089475]
[1755013470795,0.3258076,119740.0,119730.0,0.72217475]
[1755013471001,0.5191976,119740.0,119730.0,0.72217475]
[1755013471496,0.5091976,119740.0,119730.0,0.72217475]
[1755013471687,0.3891976,119740.0,119730.0,0.72217475]
[1755013472090,0.4991976,119740.0,119730.0,0.215558]
[1755013472288,0.4991976,119740.0,119730.0,0.72217475]
[1755013472595,0.5191976,119740.0,119730.0,0.72217475]
[1755013473400,0.5191976,119740.0,119730.0,0.215558]
[1755013473696,0.5191976,119740.0,119730.0,0.72217475]
[1755013473895,0.3891976,119740.0,119730.0,0.72217475]
[1755013474097,0.5091976,119740.0,119730.0,0.72217475]
[1755013475799,0.3891976,119740.0,119730.0,0.215558]
[1755013476001,0.3891976,119740.0,119730.0,0.72217475]
[1755013476202,0.5191976,119740.0,119730.0,0.72217475]
[1755013477799,0.3891976,119740.0,119730.0,0.72217475]
[1755013478102,0.5191976,119740.0,119730.0,0.72217475]
[1755013478597,0.5191976,119740.0,119730.0,0.215558]
[1755013478801,0.5191976,119740.0,119730.0,0.72217475]
[1755013479001,0.5191976,119740.0,119730.0,0.215558]
[1755013479203,0.3891976,119740.0,119730.0,0.72217475]
[1755013479404,0.4991976,119740.0,119730.0,0.72217475]
[1755013479806,0.3891976,119740.0,119730.0,0.72217475]
[1755013480892,0.5159776,119740.0,119730.0,0.72217475]
[1755013481305,0.3859776,119740.0,119730.0,0.72217475]
[1755013482007,0.4959776,119740.0,119730.0,0.72217475]
[1755013482206,0.3859776,119740.0,119730.0,0.72217475]
[1755013483800,0.5059776,119740.0,119730.0,0.72217475]
[1755013484108,0.3859776,119740.0,119730.0,0.215558]
[1755013484291,0.3859776,119740.0,119730.0,0.72217475]
[1755013485502,0.4859776,119740.0,119730.0,0.72217475]
[1755013486204,0.4859776,119740.0,119730.0,0.70089475]
[1755013486809,0.4859776,119740.0,119730.0,0.194278]
[1755013487007,0.4859776,119740.0,119730.0,0.70089475]
[1755013487503,0.4859776,119740.0,119730.0,0.194278]
[1755013487809,0.4859776,119740.0,119730.0,0.70089475]
[1755013488206,0.4859776,119740.0,119730.0,0.214048]
[1755013488406,0.4859776,119740.0,119730.0,0.72066475]
[1755013489006,0.4859776,119740.0,119730.0,0.214048]
[1755013489206,0.4859776,119740.0,119730.0,0.72066475]
[1755013490102,0.4859776,119740.0,119730.0,0.214048]
[1755013490508,0.4859776,119740.0,119730.0,0.72066475]
[1755013491106,0.4859776,119740.0,119730.0,0.194278]
[1755013491304,0.99259435,119740.0,119730.0,0.194278]
[1755013491808,0.4859776,119740.0,119730.0,0.167028]
[1755013492407,0.99259435,119740.0,119730.0,0.0835133]
[1755013492606,1.81699435,119740.0,119730.0,0.0835133]
[1755013492997,1.81599435,119740.0,119730.0,0.0835133]
[1755013493198,1.81799435,119740.0,119730.0,0.0835133]
[1755013493410,0.99359435,119740.0,119730.0,0.0835133]
[1755013493710,0.4869776,119740.0,119730.0,0.0835133]
[1755013494608,0.4849776,119740.0,119730.0,0.0835133]
[1755013494805,0.4869776,119740.0,119730.0,0.0835133]
[1755013495405,0.0835193,119730.0,119720.0,0.85936323]
[1755013495708,0.3768593,119730.0,119720.0,0.85936323]
[1755013496211,0.3768593,119730.0,119720.0,0.88781323]
[1755013496811,0.3768593,119730.0,119720.0,0.90758323]
[1755013497604,0.3778593,119730.0,119720.0,1.73130323]
[1755013497914,0.3688593,119730.0,119720.0,1.73130323]
[1755013498410,0.2588593,119730.0,119720.0,1.73130323]
[1755013498806,0.001,119730.0,119720.0,2.23791998]
[1755013499003,0.4206332,119740.0,119730.0,0.0835193]
[1755013499200,0.5012232,119740.0,119730.0,0.61858605]
[1755013499404,0.5517432,119740.0,119730.0,0.63835605]
[1755013499604,0.5517432,119740.0,119730.0,0.1317393]
[1755013499810,0.5517432,119740.0,119730.0,0.63835605]
[1755013500110,0.6717432,119740.0,119730.0,0.63835605]
[1755013500305,0.309345,119740.0,119730.0,0.63835605]
[1755013500515,0.2728573,119740.0,119730.0,0.63835605]
[1755013501207,0.3361873,119740.0,119730.0,0.63835605]
[1755013501407,0.252675,119740.0,119730.0,0.63835605]
[1755013501711,0.172085,119740.0,119730.0,0.63835605]
[1755013502307,0.129855,119740.0,119730.0,0.63835605]
[1755013503309,0.171075,119740.0,119730.0,0.63835605]
[1755013505614,0.171075,119740.0,119730.0,0.1317393]
[1755013505814,0.171075,119740.0,119730.0,0.63835605]
[1755013506213,0.190145,119740.0,119730.0,0.63835605]
[1755013507113,0.171075,119740.0,119730.0,0.63835605]
[1755013507308,0.129855,119740.0,119730.0,0.63835605]
[1755013510117,0.171075,119740.0,119730.0,0.63835605]
[1755013513518,0.171075,119740.0,119730.0,0.1317393]
[1755013513721,0.304355,119740.0,119730.0,0.63835605]
[1755013514421,0.3878676,119740.0,119730.0,0.63686605]
[1755013514617,0.3878676,119740.0,119730.0,1.43970605]
[1755013515120,0.304355,119740.0,119730.0,1.43970605]
[1755013515319,0.3878675,119740.0,119730.0,1.43970605]
[1755013515520,0.304355,119740.0,119730.0,1.43970605]
[1755013515822,0.304355,119740.0,119730.0,1.45798605]
[1755013519618,0.129855,119740.0,119730.0,1.45798605]
[1755013520320,0.171075,119740.0,119730.0,1.45798605]
[1755013521220,0.129855,119740.0,119730.0,1.45798605]
[1755013521620,0.171075,119740.0,119730.0,1.45798605]
[1755013524824,0.171075,119740.0,119730.0,1.52382752]
[1755013526529,0.204425,119740.0,119730.0,1.52382752]
[1755013527822,0.171075,119740.0,119730.0,1.52382752]
[1755013535027,0.1669498,119800.0,119780.0,0.1669692]
[1755013535229,0.12353194,119790.0,119780.0,0.2504538]
[1755013535426,0.12353194,119790.0,119780.0,0.2773538]
[1755013535623,0.18503194,119790.0,119780.0,0.2773538]
[1755013536222,0.26850964,119790.0,119780.0,0.2773538]
[1755013536428,0.26850964,119790.0,119780.0,0.78397055]
[1755013536928,0.33535326,119790.0,119780.0,0.79268697]
[1755013537233,0.26850964,119790.0,119780.0,0.79268697]
[1755013537732,0.26850964,119790.0,119780.0,0.79368697]
[1755013537927,0.26850964,119790.0,119780.0,0.79468697]
[1755013538131,0.39636464,119790.0,119780.0,0.79468697]
[1755013538528,0.52636464,119790.0,119780.0,0.79468697]
[1755013541344,0.31288694,119790.0,119780.0,0.79468697]
[1755013541529,0.39636464,119790.0,119780.0,0.79468697]
[1755013541728,0.27576464,119790.0,119780.0,0.79468697]
[1755013541931,0.127855,119790.0,119780.0,1.33693589]
[1755013542133,0.168845,119790.0,119780.0,0.83031914]
[1755013542729,0.295645,119790.0,119780.0,0.83031914]
[1755013543136,0.295645,119790.0,119780.0,0.32370239]
[1755013543328,0.295645,119790.0,119780.0,0.83031914]
[1755013544033,0.127855,119790.0,119780.0,0.83031914]
[1755013544231,0.127855,119790.0,119780.0,1.33693589]
[1755013544429,0.10020779,119830.0,119820.0,0.50661675]
[1755013544634,0.0653,119830.0,119820.0,0.61697355]
[1755013544929,0.1268,119830.0,119820.0,0.63378355]
[1755013545134,0.23587965,119830.0,119820.0,0.63378355]
[1755013545525,0.23587965,119830.0,119820.0,0.1271668]
[1755013545739,0.44932945,119830.0,119820.0,0.61697355]
[1755013546028,0.45332945,119830.0,119820.0,0.61697355]
[1755013546425,0.32632945,119830.0,119820.0,0.61697355]
[1755013546626,0.32232945,119830.0,119820.0,0.61697355]
[1755013546825,0.43232945,119830.0,119820.0,0.61797355]
[1755013547229,0.32232945,119830.0,119820.0,0.61797355]
[1755013547423,0.44718445,119830.0,119820.0,0.61797355]
[1755013547637,0.55718445,119830.0,119820.0,0.61897355]
[1755013547931,0.57432286,119830.0,119820.0,0.002]
[1755013548233,1.08093961,119830.0,119820.0,0.002]
[1755013548429,0.57432286,119830.0,119820.0,0.002]
[1755013548633,1.08093961,119830.0,119820.0,0.002]
[1755013548834,1.24785161,119830.0,119820.0,0.002]
[1755013549130,0.74123486,119830.0,119820.0,0.002]
[1755013549336,1.24785161,119830.0,119820.0,0.002]
[1755013549731,0.57432286,119830.0,119820.0,0.002]
[1755013550034,1.08093961,119830.0,119820.0,0.002]
[1755013550240,0.0834635,119810.0,119800.0,0.10207278]
[1755013550430,0.3612535,119810.0,119800.0,0.60868953]
[1755013551336,0.3612535,119810.0,119800.0,0.12897278]
[1755013551534,0.3612535,119810.0,119800.0,0.63558953]
[1755013551932,0.3612535,119810.0,119800.0,0.63858953]
[1755013552536,0.3612535,119810.0,119800.0,0.64058953]
[1755013553136,0.86787025,119810.0,119800.0,0.02360228]
[1755013553335,1.03480625,119810.0,119800.0,0.003]
[1755013553538,1.03480625,119810.0,119800.0,0.004]
[1755013553734,0.0834777,119790.0,119780.0,0.19461834]
[1755013553936,0.3812677,119790.0,119780.0,0.01882217]
[1755013554238,0.88788445,119790.0,119780.0,0.01882217]
[1755013554632,0.3812677,119790.0,119780.0,0.01882217]
[1755013555436,0.5091227,119790.0,119780.0,0.01882217]
[1755013555637,0.5091227,119790.0,119780.0,0.10230677]
[1755013555836,0.5101227,119790.0,119780.0,0.60892352]
[1755013556037,0.5101227,119790.0,119780.0,0.12920677]
[1755013556232,0.5101227,119790.0,119780.0,0.63582352]
[1755013556830,0.5111227,119790.0,119780.0,0.63582352]
[1755013557040,0.5111227,119790.0,119780.0,0.65263352]
[1755013557538,0.5111227,119790.0,119780.0,0.63582352]
[1755013557926,0.5111227,119790.0,119780.0,0.12920677]
[1755013558131,0.5111227,119790.0,119780.0,0.01882217]
[1755013558330,1.01773945,119790.0,119780.0,0.01882217]
[1755013558531,0.0834914,119770.0,119760.0,0.26881817]
[1755013558738,0.44832322,119770.0,119760.0,0.77543492]
[1755013558934,0.44832322,119770.0,119760.0,0.80233492]
[1755013559134,0.44832322,119770.0,119760.0,0.21221997]
[1755013559330,0.95493997,119770.0,119760.0,0.04522697]
[1755013559534,0.95493997,119770.0,119760.0,0.01832697]
[1755013559737,0.95493997,119770.0,119760.0,0.01932697]
[1755013560241,0.57617822,119770.0,119760.0,0.01932697]
[1755013560638,0.57617822,119770.0,119760.0,0.001]
[1755013560932,1.08279497,119770.0,119760.0,0.001]
[1755013561139,1.24978697,119770.0,119760.0,0.001]
[1755013561636,0.57617822,119770.0,119760.0,0.001]
[1755013561837,1.08279497,119770.0,119760.0,0.001]
[1755013562234,0.57617822,119770.0,119760.0,0.001]
[1755013562441,1.09992203,119770.0,119760.0,0.001]
[1755013562643,0.0835123,119740.0,119730.0,0.76573477]
[1755013562940,0.3815223,119740.0,119730.0,0.78244425]
[1755013563242,0.3815223,119740.0,119720.0,0.93448958]
[1755013563243,0.0835192,119730.0,119720.0,0.26923158]
[1755013563542,0.2515292,119730.0,119720.0,0.80112833]
[1755013564043,0.2515292,119730.0,119720.0,0.81843833]
[1755013564241,0.2515292,119730.0,119720.0,0.31182158]
[1755013564441,0.16801,119730.0,119720.0,0.81843833]
[1755013564743,0.16801,119730.0,119720.0,1.32505508]
[1755013565040,0.03926,119730.0,119720.0,1.32505508]
[1755013565244,0.167115,119730.0,119720.0,1.32505508]
[1755013565543,0.167115,119730.0,119720.0,1.33105508]
[1755013565741,0.2506342,119730.0,119720.0,1.33105508]
[1755013565941,0.2506342,119730.0,119720.0,1.33505508]
[1755013566336,0.167115,119730.0,119720.0,1.33505508]
[1755013566532,0.2506342,119730.0,119720.0,1.33505508]
[1755013566738,0.3297242,119730.0,119720.0,1.3439625]
[1755013567545,0.3297242,119730.0,119720.0,0.83734575]
[1755013567842,0.3297242,119730.0,119720.0,1.3439625]
[1755013568948,0.246205,119730.0,119720.0,1.3439625]
[1755013569240,0.167115,119730.0,119720.0,1.3439625]
[1755013573244,0.2506345,119730.0,119720.0,1.3439625]
[1755013573840,0.3297245,119730.0,119720.0,2.1583625]
[1755013574038,0.3793845,119730.0,119720.0,2.1583625]
[1755013575949,0.3793845,119730.0,119720.0,1.65174575]
[1755013576941,0.3793845,119730.0,119720.0,0.1463675]
[1755013577148,0.4893845,119730.0,119720.0,0.62770425]
[1755013577452,0.4893845,119730.0,119720.0,0.54417775]
[1755013577653,0.4893845,119730.0,119720.0,0.037561]
[1755013577951,0.4893845,119730.0,119720.0,0.65298425]
[1755013578451,0.4893845,119730.0,119720.0,0.062841]
[1755013578751,0.4893845,119730.0,119720.0,0.56945775]
[1755013578946,0.4893845,119730.0,119720.0,0.65298415]
[1755013580155,0.4893845,119730.0,119720.0,0.56945775]
[1755013580449,0.99600125,119730.0,119720.0,0.02865358]
[1755013580647,0.4893845,119730.0,119720.0,0.02865358]
[1755013581646,0.4893845,119730.0,119720.0,0.11218008]
[1755013582454,0.4893845,119730.0,119720.0,0.61879683]
[1755013582752,0.1670933,119700.0,119690.0,0.2506217]
[1755013582953,0.3351033,119700.0,119690.0,0.82206845]
[1755013583453,0.3351033,119700.0,119690.0,0.84322845]
[1755013584955,0.3351033,119700.0,119690.0,0.76824328]
[1755013585259,0.4629583,119700.0,119690.0,0.76824328]
[1755013585556,0.4639583,119700.0,119690.0,0.76824328]
[1755013585748,0.4639583,119700.0,119690.0,1.58196328]
[1755013585948,0.4639583,119700.0,119690.0,1.49842298]
[1755013586151,0.4639583,119700.0,119690.0,0.89095793]
[1755013586457,0.4639583,119700.0,119690.0,0.97450533]
[1755013587057,0.4639583,119700.0,119690.0,1.49843208]
[1755013587962,0.53087225,119700.0,119690.0,1.49819208]
[1755013589972,0.19576895,119700.0,119690.0,1.48088208]
[1755013590156,0.27930935,119700.0,119690.0,0.99157533]
[1755013590465,0.44731935,119700.0,119690.0,1.49819208]
[1755013592968,0.56731935,119700.0,119690.0,1.43308208]
[1755013593366,0.44731935,119700.0,119690.0,1.43308208]
[1755013593566,0.44731935,119700.0,119690.0,0.92646533]
[1755013593766,0.44731935,119700.0,119690.0,1.48097208]
[1755013594271,0.32019935,119700.0,119690.0,1.49710208]
[1755013594568,0.23665895,119700.0,119690.0,1.49710208]
[1755013594763,0.19576895,119700.0,119690.0,1.51563973]
[1755013595963,0.32019935,119700.0,119690.0,1.51563973]
[1755013596362,0.128855,119700.0,119690.0,1.51547973]
[1755013597659,0.129855,119700.0,119690.0,1.51547973]
[1755013598060,0.092565,119700.0,119690.0,1.51547973]
[1755013598467,0.091565,119700.0,119690.0,1.51547973]
[1755013599472,0.132455,119700.0,119690.0,1.51547973]
[1755013599658,0.132455,119700.0,119690.0,1.00886298]
[1755013599863,0.131455,119700.0,119690.0,1.51647973]
[1755013600057,0.131455,119700.0,119690.0,1.51747973]
[1755013600267,0.131455,119700.0,119690.0,1.50134973]
[1755013600569,0.3406154,119700.0,119690.0,1.50094973]
[1755013601468,0.3436154,119700.0,119690.0,1.49994973]
[1755013601871,0.3436154,119700.0,119690.0,1.49894973]
[1755013602271,0.4736154,119700.0,119690.0,1.49894973]
[1755013602474,0.4636154,119700.0,119690.0,1.49894973]
[1755013602771,0.3446154,119700.0,119690.0,1.49894973]
[1755013603777,0.3446154,119700.0,119690.0,0.11064298]
[1755013603975,0.4646154,119700.0,119690.0,1.42961973]
[1755013604177,0.3446154,119700.0,119690.0,1.42961973]
[1755013605666,0.4746154,119700.0,119690.0,0.01853765]
[1755013605867,0.98123215,119700.0,119690.0,0.01853765]
[1755013606475,0.98123215,119700.0,119690.0,0.10208505]
[1755013606674,0.50042101,119700.0,119690.0,0.10208505]
[1755013607081,0.4746154,119700.0,119690.0,0.6087018]
[1755013607478,0.4746154,119700.0,119690.0,0.10208505]
[1755013607681,0.4546154,119700.0,119690.0,0.6087018]
[1755013607977,0.2189954,119700.0,119690.0,0.6087018]
[1755013608185,0.135455,119700.0,119690.0,0.6087018]
[1755013608368,0.135455,119700.0,119690.0,1.4208218]
[1755013609075,0.094565,119700.0,119690.0,1.42945683]
[1755013610781,0.094565,119700.0,119690.0,1.51644173]
[1755013611574,0.093565,119700.0,119690.0,1.51644173]
[1755013612482,0.090565,119700.0,119690.0,1.51644173]
[1755013612679,0.3416154,119700.0,119690.0,0.92248008]
[1755013613285,0.3416154,119700.0,119690.0,1.51608173]
[1755013614082,0.132455,119700.0,119690.0,1.51608173]
[1755013614783,0.091565,119700.0,119690.0,1.51608173]
[1755013614990,0.132455,119700.0,119690.0,1.51608173]
[1755013616985,0.177175,119700.0,119690.0,1.51608173]
[1755013617187,0.235595,119700.0,119690.0,1.51608173]
[1755013618481,0.258075,119700.0,119690.0,1.51608173]
[1755013618686,0.3416154,119700.0,119690.0,0.11072008]
[1755013618887,0.4516154,119700.0,119690.0,0.10208505]
[1755013620878,0.4516154,119700.0,119690.0,0.01853765]
[1755013621083,0.4516154,119700.0,119690.0,0.10208505]
[1755013621586,1.21230505,119700.0,119690.0,0.10208505]
[1755013621787,0.0835544,119680.0,119670.0,0.35268179]
[1755013621981,0.3700644,119680.0,119670.0,0.36137385]
[1755013622180,0.37001491,119680.0,119670.0,0.27781345]
[1755013622376,0.37001491,119680.0,119670.0,0.26912139]
[1755013622586,0.37001491,119680.0,119670.0,0.18556099]
[1755013622987,0.37001491,119680.0,119670.0,0.18756099]
[1755013623883,0.37001491,119680.0,119670.0,0.18956099]
[1755013624892,0.37001491,119680.0,119670.0,0.18856099]
[1755013625295,0.34057991,119680.0,119670.0,0.18656099]
[1755013625494,0.34057991,119680.0,119670.0,0.18856099]
[1755013625695,0.47057991,119680.0,119670.0,0.18856099]
[1755013626394,0.48779973,119680.0,119670.0,0.18856099]
[1755013627202,0.48779973,119680.0,119670.0,0.10500339]
[1755013627697,1.08140138,119680.0,119670.0,0.003]
[1755013628602,0.48779973,119680.0,119670.0,0.003]
[1755013628803,0.48779973,119680.0,119670.0,0.0865613]
[1755013629004,0.48779973,119680.0,119670.0,0.003]
[1755013629498,0.35779973,119680.0,119670.0,0.68016295]
[1755013630699,0.35779973,119680.0,119670.0,0.59344003]
[1755013631105,0.23217973,119680.0,119670.0,0.59344003]
[1755013631295,0.33595973,119680.0,119670.0,0.59344003]
[1755013631700,0.19203482,119680.0,119670.0,0.59344003]
[1755013631904,0.14867482,119680.0,119670.0,0.59344003]
[1755013632294,0.23222912,119680.0,119670.0,0.59344003]
[1755013632704,0.23222912,119680.0,119670.0,0.0865613]
[1755013632909,0.23222912,119680.0,119670.0,0.68047]
[1755013633110,0.14867482,119680.0,119670.0,0.68047]
[1755013633609,0.14688482,119680.0,119670.0,0.68047]
[1755013634306,0.23043922,119680.0,119670.0,0.68047]
[1755013634503,0.35750922,119680.0,119670.0,0.68047]
[1755013636008,0.27395482,119680.0,119670.0,0.68047]
[1755013636310,0.10778482,119680.0,119670.0,0.68047]
[1755013636705,0.090565,119680.0,119670.0,0.68047]
[1755013637107,0.090565,119680.0,119670.0,0.84759]
[1755013637711,0.129665,119680.0,119670.0,0.84759]
[1755013639006,0.129665,119680.0,119670.0,0.68047]
[1755013639411,0.256735,119680.0,119670.0,0.68047]
[1755013640208,0.256735,119680.0,119670.0,0.0865613]
[1755013640408,0.3402893,119680.0,119670.0,0.68047]
[1755013641112,0.3402893,119680.0,119670.0,1.49043]
[1755013641408,0.3402893,119680.0,119670.0,0.68047]
[1755013642410,0.3402893,119680.0,119670.0,0.0865613]
[1755013644718,0.3402893,119680.0,119670.0,0.68047]
[1755013645115,0.256735,119680.0,119670.0,0.68047]
[1755013645314,0.196315,119680.0,119670.0,0.68047]
[1755013645715,0.3402893,119680.0,119670.0,0.68047]
[1755013645918,0.256735,119680.0,119670.0,0.68047]
[1755013646823,0.3402893,119680.0,119670.0,0.68047]
[1755013647023,0.256735,119680.0,119670.0,0.68047]
[1755013647318,0.196315,119680.0,119670.0,0.68047]
[1755013647524,0.256735,119680.0,119670.0,0.0865613]
[1755013647719,0.3402893,119680.0,119670.0,0.68047]
[1755013648019,0.256735,119680.0,119670.0,0.68047]
[1755013648420,0.3402893,119680.0,119670.0,0.68047]
[1755013648817,0.256735,119680.0,119670.0,0.68047]
[1755013650715,0.196315,119680.0,119670.0,0.68047]
[1755013650920,0.147425,119680.0,119670.0,0.68047]
[1755013651420,0.256735,119680.0,119670.0,0.68047]
[1755013651720,0.196315,119680.0,119670.0,0.68047]
[1755013651921,0.3402893,119680.0,119670.0,0.68047]
[1755013652421,0.1741193,119680.0,119670.0,0.68047]
[1755013652626,0.2797593,119680.0,119670.0,0.68047]
[1755013652826,0.222685,119680.0,119670.0,0.68047]
[1755013654424,0.129825,119680.0,119670.0,0.68047]
[1755013654928,0.090565,119680.0,119670.0,0.68047]
[1755013655821,0.129825,119680.0,119670.0,0.68047]
[1755013656633,0.129825,119680.0,119670.0,1.1000243]
[1755013657527,0.129825,119680.0,119670.0,0.5932928]
[1755013657729,0.156305,119680.0,119670.0,0.5932928]
[1755013657927,0.209805,119680.0,119670.0,0.5932928]
[1755013659834,0.235055,119680.0,119670.0,0.5932928]
[1755013660431,0.174065,119680.0,119670.0,0.5932928]
[1755013661136,0.148815,119680.0,119670.0,0.5932928]
[1755013661337,0.129825,119680.0,119670.0,0.5932928]
[1755013662640,0.2506112,119710.0,119700.0,0.0835404]
[1755013662839,0.2506112,119710.0,119700.0,0.5902719]
[1755013663038,0.3169912,119710.0,119700.0,0.5902719]
[1755013663241,0.4172412,119710.0,119700.0,0.5902719]
[1755013664239,0.5472412,119710.0,119700.0,0.5902719]
[1755013664439,0.5472412,119710.0,119700.0,0.0835404]
[1755013664834,0.5512412,119710.0,119700.0,0.0845404]
[1755013665541,0.5532412,119710.0,119700.0,0.0845404]
[1755013665742,0.6810962,119710.0,119700.0,0.0845404]
[1755013668239,0.6810962,119710.0,119700.0,0.5912719]
[1755013668944,0.6810962,119710.0,119700.0,0.0845404]
[1755013671546,1.1878277,119710.0,119700.0,0.0845404]
[1755013671945,0.6810962,119710.0,119700.0,0.0845404]
[1755013673536,1.1878277,119710.0,119700.0,0.0845404]
[1755013674348,0.6810962,119710.0,119700.0,0.0845404]
[1755013674542,1.1878277,119710.0,119700.0,0.0845404]
[1755013675046,1.1878277,119710.0,119690.0,0.77619167]
[1755013675047,0.0835404,119700.0,119690.0,0.26946017]